fUSD/lending_fUSD_20250319
["ID","MTS","AMOUNT","RATE_DAILY","PERIOD"]
[356401972,1742407844225,-500.0,0.00029889,2]
[356401973,1742407844234,-553.96,0.00029889,2]
[356401974,1742407844244,-500.0,0.00029889,2]
[356401975,1742407844253,-500.0,0.00029889,2]
[356401976,1742407844263,-752.05,0.00029889,2]
[356401977,1742407844272,-379.01871131,0.00029889,2]
[356401978,1742407844282,-500.0,0.00029889,2]
[356401979,1742407844294,-500.0,0.00029889,2]
[356401980,1742407844304,-500.0,0.00029889,2]
[356401981,1742407844314,-1792.39,0.00029889,2]
[356401982,1742407844323,-500.0,0.00029889,2]
[356401983,1742407844333,-500.0,0.00029889,2]
[356401984,1742407844343,-500.0,0.00029889,2]
[356401985,1742407844352,-723.62,0.00029889,2]
[356401986,1742407844362,-500.0,0.00029889,2]
[356401987,1742407844372,-982.21,0.00029889,2]
[356401988,1742407844381,-500.0,0.00029889,2]
[356401989,1742407844391,-500.0,0.00029889,2]
[356401990,1742407844400,-500.0,0.00029889,2]
[356401991,1742407844410,-500.0,0.00029889,2]
[356401992,1742407844419,-500.0,0.00029889,2]
[356401993,1742407844428,-500.0,0.00029889,2]
[356401994,1742407844438,-1729.48,0.00029889,2]
[356401995,1742407844448,-500.0,0.00029889,2]
[356401996,1742407844457,-500.0,0.00029889,2]
[356401997,1742407844467,-757.29,0.00029889,2]
[356401998,1742407844477,-515.05,0.00029889,2]
[356401999,1742407844486,-500.0,0.00029889,2]
[356402000,1742407844496,-500.0,0.00029889,2]
[356402001,1742407844506,-674.76,0.00029889,2]
[356402002,1742407844515,-500.0,0.00029889,2]
[356402003,1742407844524,-500.0,0.00029889,2]
[356402004,1742407844535,-500.0,0.00029889,2]
[356402005,1742407844545,-500.0,0.00029889,2]
[356402006,1742407844554,-500.0,0.00029889,2]
[356402007,1742407844564,-500.0,0.00029889,2]
[356402008,1742407844573,-500.0,0.00029889,2]
[356402009,1742407844583,-500.0,0.00029889,2]
[356402010,1742407844592,-500.0,0.00029889,2]
[356402011,1742407844602,-500.0,0.00029889,2]
[356402012,1742407844611,-516.79,0.00029889,2]
[356402013,1742407844621,-500.0,0.00029889,2]
[356402014,1742407844630,-500.0,0.00029889,2]
[356402015,1742407844640,-200.0,0.00029889,2]
[356402016,1742407844649,-500.0,0.00029889,2]
[356402017,1742407844660,-500.0,0.00029889,2]
[356402018,1742407844670,-500.0,0.00029889,2]
[356402019,1742407844679,-530.7,0.00029889,2]
[356402020,1742407844689,-500.0,0.00029889,2]
[356402021,1742407844699,-500.0,0.00029889,2]
[356402022,1742407844709,-560.92,0.00029889,2]
[356402023,1742407844719,-500.0,0.00029889,2]
[356402024,1742407844728,-500.0,0.00029889,2]
[356402025,1742407844738,-500.0,0.00029889,2]
[356402026,1742407844747,-500.0,0.00029889,2]
[356402027,1742407844757,-1153.62,0.00029889,2]
[356402028,1742407844767,-500.0,0.00029889,2]
[356402029,1742407844777,-1048.96,0.00029889,2]
[356402030,1742407844789,-500.0,0.00029889,2]
[356402031,1742407844798,-247.15901468,0.00029889,2]
[356402032,1742407844807,-1057.64,0.00029889,2]
[356402033,1742407844816,-500.0,0.00029889,2]
[356402034,1742407844826,-500.0,0.00029889,2]
[356402035,1742407844835,-1657.95,0.00029889,2]
[356402036,1742407844845,-500.0,0.00029889,2]
[356402037,1742407844855,-1093.59,0.00029889,2]
[356402038,1742407844865,-523.86484729,0.00029889,2]
[356402039,1742407844875,-500.0,0.00029889,2]
[356402040,1742407844885,-419.15682599,0.00029889,2]
[356402041,1742407844894,-500.0,0.00029889,2]
[356402042,1742407844904,-500.0,0.00029889,2]
[356402043,1742407844917,-500.0,0.00029889,2]
[356402044,1742407844927,-533.01,0.00029889,2]
[356402045,1742407844937,-613.37,0.00029889,2]
[356402046,1742407844946,-864.38,0.00029889,2]
[356402047,1742407844957,-500.0,0.00029889,2]
[356402048,1742407844966,-500.0,0.00029889,2]
[356402049,1742407844976,-231.7959033,0.00029889,2]
[356402050,1742407844985,-628.30675282,0.00029889,2]
[356402051,1742407844996,-626.55,0.00029889,2]
[356402052,1742407845007,-500.0,0.00029889,2]
[356402053,1742407845017,-500.0,0.00029889,2]
[356402054,1742407845027,-658.47,0.00029889,2]
[356402055,1742407845043,-500.0,0.00029889,2]
[356402056,1742407845054,-500.0,0.00029889,2]
[356402057,1742407845065,-500.0,0.00029889,2]
[356402058,1742407845075,-500.0,0.00029889,2]
[356402059,1742407845088,-786.42,0.00029889,2]
[356402060,1742407845098,-500.0,0.00029889,2]
[356402061,1742407845110,-873.64,0.00029889,2]
[356402062,1742407845121,-500.0,0.00029889,2]
[356402063,1742407845133,-500.0,0.00029889,2]
[356402064,1742407845143,-1830.56,0.00029889,2]
[356402065,1742407845153,-500.0,0.00029889,2]
[356402066,1742407845163,-500.0,0.00029889,2]
[356402067,1742407845173,-556.24,0.00029889,2]
[356402068,1742407845185,-500.0,0.00029889,2]
[356402069,1742407845196,-605.90809001,0.00029889,2]
[356402070,1742407845206,-500.0,0.00029889,2]
[356402071,1742407845217,-500.0,0.00029889,2]
[356402072,1742407845226,-500.0,0.00029889,2]
[356402073,1742407845236,-500.0,0.00029889,2]
[356402074,1742407845246,-500.0,0.00029889,2]
[356402075,1742407845255,-500.0,0.00029889,2]
[356402076,1742407845265,-500.0,0.00029889,2]
[356402077,1742407845275,-500.0,0.00029889,2]
[356402078,1742407845290,-500.0,0.00029889,2]
[356402079,1742407845300,-500.0,0.00029889,2]
[356402080,1742407845310,-500.0,0.00029889,2]
[356402081,1742407845321,-500.0,0.00029889,2]
[356402082,1742407845330,-500.0,0.00029889,2]
[356402083,1742407845342,-862.34,0.00029889,2]
[356402084,1742407845352,-572.27,0.00029889,2]
[356402085,1742407845362,-500.0,0.00029889,2]
[356402086,1742407845372,-500.0,0.00029889,2]
[356402087,1742407845382,-500.0,0.00029889,2]
[356402088,1742407845392,-628.06,0.00029889,2]
[356402089,1742407845403,-500.0,0.00029889,2]
[356402090,1742407845414,-500.0,0.00029889,2]
[356402091,1742407845423,-750.28,0.00029889,2]
[356402092,1742407845434,-426.95338477,0.00029889,2]
[356402093,1742407845444,-1011.4,0.00029889,2]
[356402094,1742407845454,-500.0,0.00029889,2]
[356402095,1742407845464,-500.0,0.00029889,2]
[356402096,1742407845473,-807.48,0.00029889,2]
[356402097,1742407845483,-500.0,0.00029889,2]
[356402098,1742407845493,-500.0,0.00029889,2]
[356402099,1742407845503,-500.0,0.00029889,2]
[356402100,1742407845512,-500.0,0.00029889,2]
[356402101,1742407845522,-500.0,0.00029889,2]
[356402102,1742407845532,-500.0,0.00029889,2]
[356402103,1742407845546,-500.0,0.00029889,2]
[356402104,1742407845556,-500.0,0.00029889,2]
[356402105,1742407845565,-500.0,0.00029889,2]
[356402106,1742407845575,-573.04,0.00029889,2]
[356402107,1742407845586,-1772.7,0.00029889,2]
[356402108,1742407845596,-823.0,0.00029889,2]
[356402109,1742407845606,-1301.13,0.00029889,2]
[356402110,1742407845615,-500.0,0.00029889,2]
[356402111,1742407845625,-500.0,0.00029889,2]
[356402112,1742407845635,-202.71908158,0.00029889,2]
[356402113,1742407845644,-1052.15,0.00029889,2]
[356402114,1742407845654,-500.0,0.00029889,2]
[356402115,1742407845664,-500.0,0.00029889,2]
[356402116,1742407845673,-500.0,0.00029889,2]
[356402117,1742407845683,-517.28,0.00029889,2]
[356402118,1742407845692,-1116.07,0.00029889,2]
[356402119,1742407845701,-500.0,0.00029889,2]
[356402120,1742407845711,-500.0,0.00029889,2]
[356402121,1742407845721,-500.0,0.00029889,2]
[356402122,1742407845731,-500.0,0.00029889,2]
[356402123,1742407845742,-1372.02,0.00029889,2]
[356402124,1742407845752,-721.83,0.00029889,2]
[356402125,1742407845762,-500.0,0.00029889,2]
[356402126,1742407845772,-588.43,0.00029889,2]
[356402127,1742407845781,-500.0,0.00029889,2]
[356402128,1742407845794,-1494.32,0.00029889,2]
[356402129,1742407845804,-538.64,0.00029889,2]
[356402131,1742407845813,-1500.0,0.00029889,2]
[356402132,1742407845823,-500.0,0.00029889,2]
[356402134,1742407845833,-500.0,0.00029889,2]
[356402136,1742407845842,-1190.4,0.00029889,2]
[356402137,1742407845852,-666.03,0.00029889,2]
[356402138,1742407845862,-500.0,0.00029889,2]
[356402139,1742407845871,-500.0,0.00029889,2]
[356402141,1742407845881,-1485.35,0.00029889,2]
[356402143,1742407845890,-500.0,0.00029889,2]
[356402145,1742407845900,-935.02,0.00029889,2]
[356402146,1742407845909,-500.0,0.00029889,2]
[356402147,1742407845921,-500.0,0.00029889,2]
[356402148,1742407845930,-500.0,0.00029889,2]
[356402150,1742407845940,-854.03,0.00029889,2]
[356402151,1742407845949,-1477.74,0.00029889,2]
[356402152,1742407845960,-510.51,0.00029889,2]
[356402153,1742407845969,-500.0,0.00029889,2]
[356402154,1742407845979,-500.0,0.00029889,2]
[356402156,1742407846205,-500.0,0.00029889,2]
[356402157,1742407846216,-795.68,0.00029889,2]
[356402158,1742407846227,-500.0,0.00029889,2]
[356402159,1742407846237,-500.0,0.00029889,2]
[356402160,1742407846247,-500.0,0.00029889,2]
[356402161,1742407846258,-826.64,0.00029889,2]
[356402162,1742407846267,-500.0,0.00029889,2]
[356402163,1742407846277,-1680.86,0.00029889,2]
[356402164,1742407846288,-500.0,0.00029889,2]
[356402165,1742407846298,-500.0,0.00029889,2]
[356402166,1742407846308,-500.0,0.00029889,2]
[356402167,1742407846319,-500.0,0.00029889,2]
[356402168,1742407846330,-632.51,0.00029889,2]
[356402169,1742407846340,-932.83,0.00029889,2]
[356402170,1742407846350,-500.0,0.00029889,2]
[356402171,1742407846359,-1900.06,0.00029889,2]
[356402172,1742407846369,-500.0,0.00029889,2]
[356402173,1742407846378,-80.07413982,0.00029889,2]
[356402174,1742407846405,-492.25586018,0.00029889,2]
[356402175,1742407846415,-500.0,0.00029889,2]
[356402176,1742407846424,-540.25,0.00029889,2]
[356402177,1742407846434,-1146.2,0.00029889,2]
[356402178,1742407846444,-500.0,0.00029889,2]
[356402179,1742407846454,-1000.0,0.00029889,2]
[356402180,1742407846464,-500.0,0.00029889,2]
[356402181,1742407846473,-500.0,0.00029889,2]
[356402182,1742407846483,-500.0,0.00029889,2]
[356402183,1742407846492,-500.0,0.00029889,2]
[356402184,1742407846502,-778.92,0.00029889,2]
[356402185,1742407846511,-5478.79,0.00029889,2]
[356402187,1742407846521,-1303.18,0.00029889,2]
[356402189,1742407846531,-761.47,0.00029889,2]
[356402191,1742407846543,-500.0,0.00029889,2]
[356402193,1742407846553,-500.0,0.00029889,2]
[356402194,1742407846562,-500.0,0.00029889,2]
[356402196,1742407846573,-1545.48,0.00029889,2]
[356402197,1742407846583,-1274.28,0.00029889,2]
[356402198,1742407846592,-500.0,0.00029889,2]
[356402199,1742407846602,-850.06,0.00029889,2]
[356402200,1742407846611,-447.67240691,0.00029889,2]
[356402201,1742407846621,-500.0,0.00029889,2]
[356402202,1742407846631,-1886.39,0.00029889,2]
[356402203,1742407846640,-1208.74,0.00029889,2]
[356402204,1742407846650,-1502.96,0.00029889,2]
[356402205,1742407846659,-679.77,0.00029889,2]
[356402206,1742407846669,-500.0,0.00029889,2]
[356402207,1742407846679,-552.76,0.00029889,2]
[356402208,1742407846688,-1226.13,0.00029889,2]
[356402209,1742407846697,-1061.28,0.00029889,2]
[356402210,1742407846707,-869.68,0.00029889,2]
[356402211,1742407846716,-500.0,0.00029889,2]
[356402212,1742407846725,-1598.46,0.00029889,2]
[356402213,1742407846735,-500.0,0.00029889,2]
[356402214,1742407846745,-1320.05,0.00029889,2]
[356402215,1742407846754,-500.0,0.00029889,2]
[356402216,1742407846765,-1000.0,0.00029889,2]
[356402217,1742407846775,-933.18,0.00029889,2]
[356402218,1742407846786,-500.0,0.00029889,2]
[356402219,1742407846796,-1077.11,0.00029889,2]
[356402220,1742407846806,-500.0,0.00029889,2]
[356402221,1742407846816,-500.0,0.00029889,2]
[356402222,1742407846825,-500.0,0.00029889,2]
[356402223,1742407846835,-509.36,0.00029889,2]
[356402224,1742407846845,-500.0,0.00029889,2]
[356402225,1742407846855,-783.76,0.00029889,2]
[356402226,1742407846864,-500.0,0.00029889,2]
[356402227,1742407846874,-620.76,0.00029889,2]
[356402228,1742407846884,-823.33,0.00029889,2]
[356402229,1742407846894,-1019.16,0.00029889,2]
[356402230,1742407846906,-1435.92,0.00029889,2]
[356402231,1742407846916,-540.65224778,0.00029889,2]
[356402232,1742407846926,-727.26,0.00029889,2]
[356402233,1742407846935,-652.53,0.00029889,2]
[356402234,1742407846945,-166.37925481,0.00029889,2]
[356402235,1742407846955,-500.0,0.00029889,2]
[356402236,1742407846965,-1160.04,0.00029889,2]
[356402237,1742407846975,-500.0,0.00029889,2]
[356402238,1742407846984,-566.78,0.00029889,2]
[356402239,1742407846995,-500.0,0.00029889,2]
[356402240,1742407847005,-584.32,0.00029889,2]
[356402241,1742407847015,-597.91,0.00029889,2]
[356402242,1742407847025,-1240.65,0.00029889,2]
[356402243,1742407847037,-577.46,0.00029889,2]
[356402244,1742407847047,-742.47,0.00029889,2]
[356402245,1742407847057,-1055.85,0.00029889,2]
[356402246,1742407847066,-500.0,0.00029889,2]
[356402247,1742407847076,-500.0,0.00029889,2]
[356402248,1742407847086,-500.0,0.00029889,2]
[356402249,1742407847095,-500.0,0.00029889,2]
[356402250,1742407847105,-1115.35,0.00029889,2]
[356402251,1742407847115,-151.0,0.00029889,7]
[356402252,1742407847124,-1288.76,0.00029889,2]
[356402253,1742407847134,-500.0,0.00029889,2]
[356402254,1742407847143,-1484.63,0.00029889,2]
[356402255,1742407847153,-1670.79,0.00029889,2]
[356402256,1742407847163,-508.08584621,0.00029889,2]
[356402257,1742407847173,-986.59,0.00029889,2]
[356402258,1742407847183,-635.41,0.00029889,2]
[356402259,1742407847193,-500.0,0.00029889,2]
[356402260,1742407847202,-500.0,0.00029889,2]
[356402261,1742407847212,-578.08,0.00029889,2]
[356402262,1742407847222,-784.25,0.00029889,2]
[356402263,1742407847232,-500.0,0.00029889,2]
[356402264,1742407847242,-500.0,0.00029889,2]
[356402265,1742407847253,-1924.19,0.00029889,2]
[356402266,1742407847263,-500.0,0.00029889,2]
[356402267,1742407847273,-500.0,0.00029889,2]
[356402268,1742407847283,-1000.0,0.00029889,2]
[356402269,1742407847296,-500.0,0.00029889,2]
[356402270,1742407847306,-500.0,0.00029889,2]
[356402271,1742407847315,-1156.21,0.00029889,2]
[356402272,1742407847328,-1724.32,0.00029889,2]
[356402273,1742407847340,-500.0,0.00029889,2]
[356402274,1742407847352,-500.0,0.00029889,2]
[356402275,1742407847362,-500.0,0.00029889,2]
[356402276,1742407847372,-500.0,0.00029889,2]
[356402277,1742407847382,-1493.44,0.00029889,2]
[356402278,1742407847391,-510.57353419,0.00029889,2]
[356402279,1742407847401,-523.15,0.00029889,2]
[356402280,1742407847411,-500.0,0.00029889,2]
[356402281,1742407847420,-500.0,0.00029889,2]
[356402282,1742407847430,-1125.93,0.00029889,2]
[356402283,1742407847439,-528.66,0.00029889,2]
[356402284,1742407847449,-513.80865634,0.00029889,2]
[356402285,1742407847458,-976.31,0.00029889,2]
[356402286,1742407847468,-1946.56,0.00029889,2]
[356402287,1742407847477,-704.58,0.00029889,2]
[356402288,1742407847487,-500.0,0.00029889,2]
[356402289,1742407847496,-504.25494066,0.00029889,2]
[356402290,1742407847505,-500.0,0.00029889,2]
[356402291,1742407847515,-500.0,0.00029889,2]
[356402292,1742407847524,-505.16240062,0.00029889,2]
[356402293,1742407847535,-500.0,0.00029889,2]
[356402294,1742407847547,-500.0,0.00029889,2]
[356402295,1742407847557,-500.0,0.00029889,2]
[356402296,1742407847567,-517.99,0.00029889,2]
[356402297,1742407847576,-687.6,0.00029889,2]
[356402298,1742407847585,-500.0,0.00029889,2]
[356402299,1742407847595,-500.0,0.00029889,2]
[356402300,1742407847604,-1113.1,0.00029889,2]
[356402301,1742407847614,-509.2252176,0.00029889,2]
[356402302,1742407847624,-1414.42,0.00029889,2]
[356402303,1742407847634,-506.92936126,0.00029889,2]
[356402304,1742407847644,-504.58358932,0.00029889,2]
[356402305,1742407847653,-539.86,0.00029889,2]
[356402306,1742407847663,-1123.59,0.00029889,2]
[356402307,1742407847674,-544.07717213,0.00029889,2]
[356402308,1742407847684,-718.87,0.00029889,2]
[356402309,1742407847694,-500.0,0.00029889,2]
[356402310,1742407847705,-561.31,0.00029889,2]
[356402311,1742407847716,-500.0,0.00029889,2]
[356402312,1742407847726,-765.52,0.00029889,2]
[356402313,1742407847737,-512.89,0.00029889,2]
[356402314,1742407847746,-500.0,0.00029889,2]
[356402315,1742407847756,-500.0,0.00029889,2]
[356402316,1742407847766,-500.0,0.00029889,2]
[356402317,1742407847776,-505.2658312,0.00029889,2]
[356402318,1742407847786,-809.12,0.00029889,2]
[356402319,1742407847796,-507.7,0.00029889,2]
[356402320,1742407847805,-954.71,0.00029889,2]
[356402321,1742407847815,-466.74872587,0.00029889,2]
[356402322,1742407847826,-500.0,0.00029889,2]
[356402323,1742407847835,-505.53859466,0.00029889,2]
[356402324,1742407847845,-500.0,0.00029889,2]
[356402325,1742407847854,-616.48,0.00029889,2]
[356402326,1742407847864,-895.82,0.00029889,2]
[356402327,1742407847873,-509.55640649,0.00029889,2]
[356402328,1742407847883,-500.0,0.00029889,2]
[356402329,1742407847892,-500.0,0.00029889,2]
[356402330,1742407847902,-1301.43,0.00029889,2]
[356402331,1742407847916,-504.97265225,0.00029889,2]
[356402332,1742407847926,-500.0,0.00029889,2]
[356402333,1742407847936,-874.68,0.00029889,2]
[356402334,1742407847947,-1824.57,0.00029889,2]
[356402335,1742407847957,-500.0,0.00029889,2]
[356402336,1742407847967,-500.0,0.00029889,2]
[356402337,1742407847976,-500.0,0.00029889,2]
[356402338,1742407847986,-657.64,0.00029889,2]
[356402339,1742407847997,-500.0,0.00029889,2]
[356402340,1742407848007,-671.42,0.00029889,2]
[356402341,1742407848017,-500.0,0.00029889,2]
[356402342,1742407848028,-761.8,0.00029889,2]
[356402343,1742407848040,-924.18,0.00029889,2]
[356402344,1742407848050,-509.49112485,0.00029889,2]
[356402345,1742407848060,-500.0,0.00029889,2]
[356402346,1742407848070,-801.19,0.00029889,2]
[356402347,1742407848080,-500.0,0.00029889,2]
[356402348,1742407848089,-500.0,0.00029889,2]
[356402349,1742407848099,-500.0,0.00029889,2]
[356402350,1742407848109,-1237.14,0.00029889,2]
[356402351,1742407848119,-500.0,0.00029889,2]
[356402352,1742407848129,-506.22853079,0.00029889,2]
[356402353,1742407848139,-500.0,0.00029889,2]
[356402354,1742407848148,-500.0,0.00029889,2]
[356402355,1742407848159,-2008.9,0.00029889,2]
[356402356,1742407848169,-1367.78,0.00029889,2]
[356402357,1742407848179,-511.48232024,0.00029889,2]
[356402358,1742407848188,-636.47,0.00029889,2]
[356402359,1742407848198,-500.0,0.00029889,2]
[356402360,1742407848208,-503.15915782,0.00029889,2]
[356402361,1742407848218,-500.0,0.00029889,2]
[356402362,1742407848228,-710.76,0.00029889,2]
[356402363,1742407848238,-500.0,0.00029889,2]
[356402364,1742407848248,-500.0,0.00029889,2]
[356402365,1742407848257,-500.0,0.00029889,2]
[356402366,1742407848267,-500.0,0.00029889,2]
[356402367,1742407848277,-500.0,0.00029889,2]
[356402368,1742407848289,-500.0,0.00029889,2]
[356402369,1742407848299,-832.92,0.00029889,2]
[356402370,1742407848309,-500.0,0.00029889,2]
[356402371,1742407848319,-2385.33,0.00029889,2]
[356402372,1742407848329,-1111.25,0.00029889,2]
[356402373,1742407848339,-500.0,0.00029889,2]
[356402374,1742407848348,-500.0,0.00029889,2]
[356402375,1742407848358,-500.0,0.00029889,2]
[356402376,1742407848367,-1992.25,0.00029889,2]
[356402377,1742407848377,-500.0,0.00029889,2]
[356402378,1742407848387,-500.0,0.00029889,2]
[356402379,1742407848397,-778.35,0.00029889,2]
[356402380,1742407848406,-1896.01,0.00029889,2]
[356402381,1742407848415,-500.0,0.00029889,2]
[356402382,1742407848425,-500.0,0.00029889,2]
[356402383,1742407848435,-500.0,0.00029889,2]
[356402384,1742407848444,-580.91,0.00029889,2]
[356402385,1742407848455,-500.0,0.00029889,2]
[356402386,1742407848464,-500.0,0.00029889,2]
[356402387,1742407848474,-1829.0,0.00029889,2]
[356402388,1742407848484,-500.0,0.00029889,2]
[356402389,1742407848493,-500.0,0.00029889,2]
[356402390,1742407848503,-500.0,0.00029889,2]
[356402391,1742407848514,-500.0,0.00029889,2]
[356402392,1742407848524,-672.01,0.00029889,2]
[356402393,1742407848534,-924.23,0.00029889,2]
[356402394,1742407848545,-1121.05,0.00029889,2]
[356402395,1742407848555,-500.0,0.00029889,2]
[356402396,1742407848565,-500.0,0.00029889,2]
[356402397,1742407848575,-500.0,0.00029889,2]
[356402398,1742407848584,-500.0,0.00029889,2]
[356402399,1742407848594,-500.0,0.00029889,2]
[356402400,1742407848604,-1791.92,0.00029889,2]
[356402401,1742407848614,-500.0,0.00029889,2]
[356402402,1742407848624,-500.0,0.00029889,2]
[356402403,1742407848634,-500.0,0.00029889,2]
[356402404,1742407848644,-500.0,0.00029889,2]
[356402405,1742407848654,-582.97,0.00029889,2]
[356402406,1742407848664,-504.56969962,0.00029889,2]
[356402407,1742407848674,-218.0,0.0002989,5]
[356402408,1742407848684,-150.0,0.0002989,2]
[356402409,1742407848693,-151.0,0.0002989,7]
[356402410,1742407848703,-150.0,0.00029892,2]
[356402411,1742407848712,-150.0,0.00029899,2]
[356402412,1742407848722,-32165.66217816,0.000299,3]
[356402413,1742407849387,-32171.51842424,0.000299,3]
[356402414,1742407849399,-84246.125986,0.000299,3]
[356402415,1742407849410,-2843.65000929,0.000299,3]
[356402416,1742407849430,-500.0,0.00029889,2]
[356402417,1742407849440,-474.2,0.000299,3]
[356402418,1742407849452,-20510.57009342,0.000299,3]
[356402419,1742407849463,-25155.26087721,0.000299,3]
[356402420,1742407849475,-6604.58503882,0.000299,3]
[356402421,1742407849487,-616.82500046,0.000299,3]
[356402443,1742408912797,5496.14955399,9.828e-05,2]
[356402473,1742409032352,-5550.0,0.000251,5]
[356402474,1742409032363,-440.67,0.00026849,2]
[356402475,1742409032373,-519.69,0.00026887,2]
[356402476,1742409032384,-150.0,0.0002739,2]
[356402477,1742409032394,-297.08575693,0.00028805,120]
[356402478,1742409032407,-401.78424307,0.00028805,120]
[356402479,1742409032417,-26.50020533,0.00028805,2]
[356402480,1742409032455,-129.57979467,0.00028805,2]
[356402481,1742409032465,-168.9,0.00028808,2]
[356402482,1742409032475,-46.10129788,0.00028822,2]
[356402483,1742409032491,-953.89870212,0.00028822,2]
[356402484,1742409032501,-156.08,0.00029093,2]
[356402485,1742409032511,-193.8131345,0.000291,4]
[356402486,1742409032520,-9.0892841,0.00029151,2]
[356402487,1742409032536,-510.6007159,0.00029151,2]
[356402488,1742409032546,-156.08,0.00029381,2]
[356402489,1742409032555,-300.0,0.000294,10]
[356402490,1742409032565,-600.0,0.000295,10]
[356402492,1742409032575,-204.0,0.0002951,2]
[356402494,1742409032584,-900.0,0.000296,10]
[356402496,1742409032593,-149.29549099,0.000296,2]
[356402525,1742409038191,-334.48450901,0.000296,2]
[356402526,1742409038201,-156.08,0.00029669,2]
[356402527,1742409038210,-1200.0,0.000297,10]
[356402528,1742409038220,-150.0,0.00029732,2]
[356402529,1742409038230,-150.0,0.00029732,2]
[356402530,1742409038239,-150.0,0.00029734,2]
[356402531,1742409038248,-150.0,0.00029737,2]
[356402532,1742409038258,-150.0,0.00029748,2]
[356402533,1742409038267,-150.0,0.00029752,2]
[356402534,1742409038276,-150.0,0.00029757,2]
[356402535,1742409038285,-150.0,0.00029759,2]
[356402536,1742409038295,-150.0,0.00029763,2]
[356402537,1742409038305,-150.0,0.00029764,2]
[356402538,1742409038316,-150.0,0.00029778,2]
[356402539,1742409038327,-150.0,0.00029779,2]
[356402540,1742409038343,-150.0,0.00029786,2]
[356402541,1742409038352,-150.0,0.00029788,2]
[356402542,1742409038362,-192.27346793,0.00029789,2]
[356402543,1742409038371,-655.4975,0.00029789,2]
[356402544,1742409038382,-222.0,0.00029789,2]
[356402545,1742409038392,-4410.3351,0.00029789,2]
[356402546,1742409038401,-192.27346791,0.0002979,2]
[356402547,1742409038412,-192.27346791,0.00029791,2]
[356402548,1742409038422,-192.27346791,0.00029793,2]
[356402549,1742409038431,-192.27346791,0.00029794,2]
[356402550,1742409038441,-192.27346791,0.00029795,2]
[356402551,1742409038450,-192.27346791,0.00029796,2]
[356402552,1742409038460,-192.27346791,0.00029798,2]
[356402553,1742409038470,-192.27346791,0.00029799,2]
[356402554,1742409038479,-285.57296732,0.000298,2]
[356402555,1742409038489,-2000.0,0.000298,120]
[356402556,1742409038498,-179.91550217,0.000298,2]
[356402557,1742409038508,-150.0,0.000298,2]
[356402558,1742409038518,-192.27346791,0.000298,2]
[356402560,1742409038527,-1600.0,0.000298,10]
[356402561,1742409038536,-709.40160259,0.000298,2]
[356402562,1742409038546,-150.0,0.00029803,2]
[356402563,1742409038555,-527.732,0.00029809,24]
[356402564,1742409038567,-173.683,0.00029809,24]
[356402565,1742409038576,-150.0,0.00029811,2]
[356402566,1742409038584,-150.0,0.00029823,2]